fUSD/lending_fUSD_20260115
["ID","MTS","AMOUNT","RATE_DAILY","PERIOD"]
[402019171,1768468242092,-500.0,0.00017999,2]
[402019172,1768468242102,-500.0,0.00017999,2]
[402019173,1768468242112,-500.0,0.00017999,2]
[402019174,1768468242123,-500.0,0.00017999,2]
[402019175,1768468242133,-500.0,0.00017999,2]
[402019176,1768468242143,-500.0,0.00017999,2]
[402019177,1768468242153,-500.0,0.00017999,2]
[402019178,1768468242163,-500.0,0.00017999,2]
[402019179,1768468242174,-500.0,0.00017999,2]
[402019180,1768468242184,-500.0,0.00017999,2]
[402019181,1768468242194,-500.0,0.00017999,2]
[402019182,1768468242205,-2868353.88388353,0.00018,2]
[402019183,1768468242229,-1144.98581222,0.00018,2]
[402019184,1768468242241,-7722.64661839,0.00018,2]
[402019185,1768468242253,-2175.02066338,0.00018,2]
[402019186,1768468242266,-1109.86639144,0.00018,2]
[402019211,1768468243878,-3874.85299278,0.00018,2]
[402019212,1768468243889,-722.053332,0.00018,2]
[402019213,1768468243904,-70263.72299719,0.00018,2]
[402019214,1768468243942,-698.38482985,0.00018,2]
[402019215,1768468243953,-1267.16810677,0.00018,2]
[402019216,1768468243964,-1572.80065237,0.00018,2]
[402019217,1768468243975,-1650.5535367,0.00018,2]
[402019218,1768468243997,-1290.96378815,0.00018,2]
[402019219,1768468244012,-439.16784143,0.00018,2]
[402019220,1768468245915,-11691.862551,0.00018,2]
[402019221,1768468246982,-230406.09681049,0.00018,2]
[402019222,1768468246993,-26512.449265,0.00018,2]
[402019223,1768468247003,-3766.0296454,0.00018,2]
[402019224,1768468247012,-13451.9006447,0.00018,2]
[402019225,1768468247022,-2087.2656721,0.00018,2]
[402019226,1768468247031,-214.85283,0.00018,2]
[402019227,1768468247041,-214.85284,0.00018,2]
[402019228,1768468247051,-214.85284,0.00018,2]
[402019229,1768468247060,-214.85283,0.00018,2]
[402019230,1768468247070,-428.29410084,0.00018,2]
[402019231,1768468247080,-151.0,0.00018,2]
[402019232,1768468247090,-295.96194048,0.00018191,2]
[402019233,1768468247100,-333.5857473,0.00018195,2]
[402019234,1768468247109,-166.66,0.00018201,2]
[402019235,1768468247119,-595.37131296,0.0001821,2]
[402019236,1768468247128,-606.38167641,0.00018219,2]
[402019237,1768468247138,-300.0,0.0001823,2]
[402019238,1768468247148,-300.0,0.0001823,2]
[402019239,1768468247158,-215.77,0.00018254,2]
[402019240,1768468247167,-717.38,0.00018295,2]
[402019241,1768468247177,-166.66,0.00018313,2]
[402019242,1768468247186,-168.0,0.00018349,2]
[402019243,1768468247196,-168.0,0.00018392,2]
[402019244,1768468247205,-1305.35923953,0.000184,2]
[402019245,1768468247215,-334.5472959,0.00018493,2]
[402019246,1768468247225,-150.0,0.00018519,3]
[402019247,1768468247234,-200.7,0.00018537,2]
[402019248,1768468247244,-166.66,0.00018554,2]
[402019249,1768468247255,-2508.72903346,0.00018596,2]
[402019250,1768468247264,-168.0,0.00018599,2]
[402019251,1768468247273,-318.25,0.00018604,2]
[402019252,1768468247282,-900.48049367,0.0001863,2]
[402019253,1768468247291,-168.0,0.00018685,2]
[402019254,1768468247301,-617.40005154,0.00018758,2]
[402019255,1768468247311,-582.19,0.00018776,2]
[402019256,1768468247320,-150.0,0.00018828,2]
[402019257,1768468247329,-179.17388048,0.000189,2]
[402019258,1768468247338,-168.0,0.00018925,2]
[402019259,1768468247347,-166.67,0.00018982,2]
[402019260,1768468247357,-64308.48593658,0.00019,2]
[402019262,1768468367785,-10233.1764,0.00017562,2]
[402019263,1768468367808,-212.3328,0.00017573,2]
[402019264,1768468367834,-300.0,0.00017622,2]
[402019265,1768468367856,-319.8126461,0.00017672,2]
[402019266,1768468367878,-553.36197774,0.00017999,2]
[402019267,1768468367903,-500.0,0.00017999,2]
[402019268,1768468367928,-500.0,0.00017999,2]
[402019269,1768468367952,-500.0,0.00017999,2]
[402019270,1768468367977,-500.0,0.00017999,2]
[402019271,1768468368001,-500.0,0.00017999,2]
[402019272,1768468368025,-500.0,0.00017999,2]
[402019273,1768468368049,-500.0,0.00017999,2]
[402019274,1768468368073,-500.0,0.00017999,2]
[402019275,1768468368097,-500.0,0.00017999,2]
[402019276,1768468368121,-500.0,0.00017999,2]
[402019277,1768468368146,-500.0,0.00017999,2]
[402019278,1768468368171,-500.0,0.00017999,2]
[402019279,1768468368198,-500.0,0.00017999,2]
[402019280,1768468368225,-500.0,0.00017999,2]
[402019281,1768468368261,-500.0,0.00017999,2]
[402019282,1768468368299,-500.0,0.00017999,2]
[402019283,1768468368325,-500.0,0.00017999,2]
[402019284,1768468368349,-500.0,0.00017999,2]
[402019285,1768468368374,-500.0,0.00017999,2]
[402019286,1768468368398,-500.0,0.00017999,2]
[402019287,1768468368424,-500.0,0.00017999,2]
[402019288,1768468368450,-261.56968488,0.00017999,2]
[402019289,1768468368479,-340.90571562,0.00017999,2]
[402019290,1768468368501,-500.0,0.00017999,2]
[402019291,1768468368524,-165.49821385,0.00017999,2]
[402019292,1768468368547,-500.0,0.00017999,2]
[402019293,1768468368569,-500.0,0.00017999,2]
[402019294,1768468376743,461025.30191469,0.0001697,2]
[402019306,1768468809830,339.0,0.00030136,120]
[402019319,1768468916289,-2024.238,0.0001663,2]
[402019320,1768468916312,-168.07,0.0001663,2]
[402019321,1768468916335,-2200.71019087,0.00016874,2]
[402019322,1768468916358,-293.0,0.00016953,2]
[402019323,1768468916382,-300.0,0.00016953,2]
[402019324,1768468916404,-303.01122349,0.00016953,2]
[402019325,1768468916431,-1200.0,0.00016969,2]
[402019326,1768468916453,-300.0,0.00016969,2]
[402019327,1768468916476,-150.0,0.00016969,2]
[402019328,1768468916504,-493060.97058564,0.0001697,2]
[402019330,1768469074441,264.61,0.00019178,30]
[402019362,1768469432158,-364.13105116,0.000136,2]
[402019363,1768469432230,-131.92958897,0.000136,2]
[402019364,1768469432239,-300.0,0.0001428,2]
[402019365,1768469432249,-283.0397577,0.000146,2]
[402019366,1768469432298,-434.3402423,0.000146,2]
[402019367,1768469432308,-300.0,0.0001496,2]
[402019368,1768469432317,-300.0,0.0001496,2]
[402019369,1768469432326,-300.0,0.0001496,2]
[402019370,1768469432335,-565.70718826,0.0001496,2]
[402019371,1768469432345,-300.0,0.0001496,2]
[402019372,1768469432355,-150.25740556,0.0001496,2]
[402019373,1768469432364,-250.0,0.0001496,2]
[402019374,1768469432373,-195.0,0.0001496,2]
[402019375,1768469432383,-250.49144649,0.00015108,2]
[402019376,1768469432392,-300.0,0.00015285,2]
[402019377,1768469432401,-300.0,0.00016869,2]
[402019378,1768469432410,-1200.0,0.00016869,2]
[402019379,1768469432420,-236.0,0.00016869,2]
[402019380,1768469432429,-298310.24676858,0.0001687,2]
[402019381,1768469432441,-20024.3239119,0.0001687,2]
[402019382,1768469432452,-217839.2530286,0.0001687,2]
[402019383,1768469432463,-539.07428944,0.0001687,2]
[402019384,1768469432474,-940.0,0.0001687,2]
[402019390,1768469438095,-1349.90711029,0.0001687,2]
[402019391,1768469438107,-9050.06184128,0.0001687,2]
[402019392,1768469438154,-232804.06434991,0.0001687,2]
[402019393,1768469438164,-162.82749213,0.00017077,2]
[402019394,1768469438173,-322.6107,0.00017177,2]
[402019395,1768469438183,-162.82749211,0.00017195,2]
[402019396,1768469438193,-1852.42,0.00017241,2]
[402019397,1768469438203,-150.0,0.00017449,2]
[402019398,1768469438212,-466.78373297,0.00017555,2]
[402019399,1768469438224,-168.0,0.00017632,2]
[402019400,1768469438234,-500.0,0.00017672,2]
[402019401,1768469438246,-500.0,0.00017672,2]
[402019402,1768469438256,-500.0,0.00017672,2]
[402019403,1768469438266,-500.0,0.00017773,2]
[402019404,1768469438276,-500.0,0.00017773,2]
[402019405,1768469438286,-500.0,0.00017773,2]
[402019406,1768469438295,-274.36044422,0.00017773,2]
[402019407,1768469438304,-503.28130662,0.00017773,2]
[402019408,1768469438314,-500.0,0.00017773,2]
[402019409,1768469438323,-500.0,0.00017773,2]
[402019410,1768469438333,-500.0,0.00017773,2]
[402019411,1768469438343,-517.44309962,0.00017773,2]
[402019423,1768469438607,-500.0,0.00017773,2]
[402019424,1768469438686,-500.0,0.00017773,2]
[402019425,1768469438696,-500.0,0.00017773,2]
[402019426,1768469438707,-500.0,0.00017773,2]
[402019427,1768469438716,-266.18203271,0.00017773,2]
[402019428,1768469438726,-500.0,0.00017773,2]
[402019429,1768469438736,-500.0,0.00017773,2]
[402019430,1768469438746,-191.87361076,0.00017773,2]
[402019431,1768469438756,-500.0,0.00017773,2]
[402019432,1768469438766,-500.0,0.00017773,2]
[402019433,1768469438775,-300.0,0.00017773,2]
[402019434,1768469438785,-500.0,0.00017773,2]
[402019435,1768469438798,-500.0,0.00017773,2]
[402019436,1768469438809,-500.0,0.00017773,2]
[402019437,1768469438818,-500.0,0.00017773,2]
[402019438,1768469438828,-500.0,0.00017773,2]
[402019439,1768469438839,-500.0,0.00017773,2]
[402019440,1768469438848,-500.0,0.00017773,2]
[402019441,1768469438857,-373.50190551,0.00017773,2]
[402019442,1768469438868,-500.0,0.00017773,2]
[402019443,1768469438878,-500.0,0.00017773,2]
[402019444,1768469438888,-500.0,0.00017773,2]
[402019445,1768469438897,-242.57474752,0.00017773,2]
[402019446,1768469438906,-501.52952585,0.00017773,2]
[402019447,1768469438915,-500.0,0.00017773,2]
[402019448,1768469438925,-500.0,0.00017773,2]
[402019449,1768469438934,-500.0,0.00017773,2]
[402019450,1768469438944,-500.0,0.00017773,2]
[402019451,1768469438955,-500.0,0.00017773,2]
[402019452,1768469438965,-500.0,0.00017773,2]
[402019453,1768469438974,-160.81693498,0.00017773,2]
[402019454,1768469438984,-606.38167641,0.00017773,2]
[402019455,1768469438994,-166.79,0.00017773,2]
[402019456,1768469439004,-200.18562958,0.00017799,2]
[402019457,1768469439013,-502.60855943,0.00017899,2]
[402019458,1768469439023,-9999.99,0.00017899,2]
[402019459,1768469439033,-299.99,0.00017899,4]
[402019460,1768469439043,-2097.12,0.00017899,2]
[402019461,1768469439052,-4245.74,0.00017899,2]
[402019462,1768469439062,-150.99,0.00017899,2]
[402019463,1768469439071,-150.99,0.00017899,2]
[402019464,1768469439081,-19806.39171747,0.000179,2]
[402019465,1768469439092,-186.6001756,0.000179,2]
[402019466,1768469439101,-168.0,0.0001796,2]
[402019467,1768469439111,-663.09929246,0.00017989,2]
[402019468,1768469439120,-574.12855637,0.00017989,2]
[402019469,1768469439129,-150.0,0.00017999,2]
[402019470,1768469439139,-238.63400093,0.00017999,2]
[402019471,1768469439148,-165.15986362,0.00017999,2]
[402019472,1768469439158,-230.88451517,0.00017999,2]
[402019473,1768469439167,-387.35338442,0.00017999,2]
[402019474,1768469439177,-500.0,0.00017999,2]
[402019475,1768469439186,-500.0,0.00017999,2]
[402019476,1768469439195,-165.8487497,0.00017999,2]
[402019477,1768469439205,-500.0,0.00017999,2]
[402019478,1768469439215,-161.95604531,0.00017999,2]
[402019479,1768469439224,-500.0,0.00017999,2]
[402019480,1768469439233,-500.0,0.00017999,2]
[402019481,1768469439242,-500.0,0.00017999,2]
[402019482,1768469439252,-500.0,0.00017999,2]
[402019483,1768469439262,-500.0,0.00017999,2]
[402019484,1768469439271,-500.0,0.00017999,2]
[402019485,1768469439290,-500.0,0.00017999,2]
[402019486,1768469439300,-500.0,0.00017999,2]
[402019487,1768469439310,-500.0,0.00017999,2]
[402019488,1768469439319,-576.15696849,0.00017999,2]
[402019490,1768469439328,-500.0,0.00017999,2]
[402019491,1768469439338,-500.0,0.00017999,2]
[402019492,1768469439348,-350.0,0.00017999,2]
[402019493,1768469439358,-500.0,0.00017999,2]
[402019494,1768469439367,-500.0,0.00017999,2]
[402019495,1768469439376,-350.0,0.00017999,2]
[402019496,1768469439386,-500.0,0.00017999,2]
[402019497,1768469439395,-500.0,0.00017999,2]
[402019498,1768469439405,-350.0,0.00017999,2]
[402019499,1768469439415,-500.0,0.00017999,2]
[402019500,1768469439424,-500.0,0.00017999,2]
[402019501,1768469439434,-500.0,0.00017999,2]
[402019502,1768469439444,-500.0,0.00017999,2]
[402019503,1768469439453,-250.0,0.00017999,2]
[402019504,1768469439463,-500.0,0.00017999,2]
[402019505,1768469439472,-500.0,0.00017999,2]
[402019506,1768469439481,-500.0,0.00017999,2]
[402019507,1768469439491,-500.0,0.00017999,2]
[402019508,1768469439500,-500.0,0.00017999,2]
[402019509,1768469439509,-200.0,0.00017999,2]
[402019510,1768469439519,-447.88452296,0.00018,2]
[402019511,1768469439528,-43632.83393719,0.00018,2]
[402019512,1768469439541,-3106.04915227,0.00018,2]
[402019513,1768469439553,-3570.74242685,0.00018,2]
[402019514,1768469439677,-988.23777312,0.00018,2]
[402019515,1768469439697,-390.13419744,0.00018,2]
[402019518,1768469440177,-2745.89704386,0.00018,2]
[402019519,1768469440233,-1404.44569842,0.00018,2]
[402019520,1768469440244,-3464.4454591,0.00018,2]
[402019521,1768469440255,-5218.36329611,0.00018,2]
[402019522,1768469440395,-13156.62256202,0.00018,2]
[402019523,1768469440504,-162.82749211,0.00017312,2]
[402019524,1768469440514,-1739.24250789,0.00018,2]
[402019525,1768469440525,-465.74054416,0.00018,2]
[402019526,1768469440541,-3149033.05106647,0.00018,2]
[402019527,1768469440553,-2860.95238278,0.00018,2]
[402019537,1768469443218,-500.0,0.00017999,2]
[402019538,1768469443228,-500.0,0.00017999,2]
[402019539,1768469443237,-130.40073013,0.00017999,2]
[402019540,1768469443248,-369.59926987,0.00017999,2]
[402019541,1768469443258,-258.6893408,0.00018,2]
[402019542,1768469443274,-10309.24010972,0.00018,2]
[402019543,1768469443285,-289.78000002,0.00018,2]
[402019544,1768469443327,-23098.19524539,0.00018,2]
[402019545,1768469443339,-911.29083245,0.00018,2]
[402019546,1768469443351,-468.72833472,0.00018,2]
[402019547,1768469443387,-302.05042645,0.00018,2]
[402019548,1768469443499,-662.76,0.00018,2]
[402019549,1768469443511,-469.06607036,0.00018,2]
[402019550,1768469443522,-5878.19460365,0.00018,2]
[402019551,1768469443533,-4593.71028193,0.00018,2]
[402019554,1768469446111,-162.82749211,0.0001743,2]
[402019555,1768469446121,-176.03451447,0.00017999,2]
[402019556,1768469446130,-23030.86452942,0.00018,2]
[402019557,1768469446149,-1585.57444177,0.00018,2]
[402019558,1768469446160,-4095.31242003,0.00018,2]
[402019559,1768469446171,-633.850205,0.00018,2]
[402019560,1768469446182,-2505.35903128,0.00018,2]
[402019561,1768469446194,-15796.29031247,0.00018,2]
[402019562,1768469446239,-4836.15503975,0.00018,2]
[402019563,1768469446250,-364.34151059,0.00018,2]
[402019564,1768469446339,-2727.0,0.00018,2]
[402019565,1768469446351,-1907.42836594,0.00018,2]
[402019566,1768469446362,-546.15709375,0.00018,2]
[402019567,1768469446373,-1010.1,0.00018,2]
[402019595,1768469446751,-207618.77063679,0.00018,2]
[402019596,1768469446763,-418.0117,0.00018,2]
[402019603,1768469984147,-582.19,0.00016455,2]
[402019604,1768469984171,-166.66,0.00016457,2]
[402019605,1768469984195,-300.0,0.00016613,2]
[402019606,1768469984218,-156.23899987,0.00016669,2]
[402019607,1768469984241,-295.96194048,0.00016734,2]
[402019608,1768469984264,-3074.71663813,0.00016734,2]
[402019609,1768469984288,-1200.0,0.00016769,2]
[402019610,1768469984311,-300.0,0.00016769,2]
[402019611,1768469984334,-2464.5875,0.0001677,2]
[402019612,1768469984357,-4266.57259924,0.0001677,2]
[402019613,1768469984379,-169.36274615,0.0001677,2]
[402019614,1768469984402,-163.16990497,0.0001677,2]
[402019615,1768469984426,-166.66,0.00016804,2]
[402019616,1768469984449,-450.0,0.00016869,2]
[402019617,1768469984477,-486243.87967116,0.0001687,2]
[402019637,1768470635596,150.92,8.081e-05,2]
[402019638,1768470637280,-158.3570006,0.00013635,2]
[402019639,1768470637290,-1210.43374011,0.00013635,2]
[402019640,1768470637302,-488.82625989,0.00013635,2]
[402019641,1768470637312,-150.92,0.00016162,2]
[402019642,1768470637322,-310.95055687,0.00016164,2]
[402019643,1768470637345,-189.04944313,0.00016164,2]
[402019644,1768470637354,-200.0,0.00016427,2]
[402019645,1768470637364,-2870.06931335,0.00016427,2]
[402019646,1768470637374,-999.0,0.00016471,3]
[402019647,1768470637383,-1200.0,0.00016512,2]
[402019648,1768470637393,-3094.4,0.00016513,2]
[402019649,1768470637403,-300.0,0.00016742,2]
[402019650,1768470637412,-300.0,0.00016742,2]
[402019651,1768470637422,-300.0,0.00016742,2]
[402019652,1768470637431,-278.0,0.00016742,2]
[402019653,1768470637440,-1000.0,0.00016743,2]
[402019654,1768470637450,-2500.0,0.0001677,2]
[402019655,1768470637459,-105293.3206,0.0001677,2]
[402019656,1768470637469,-157.05333065,0.00016859,2]
[402019657,1768470637478,-500.0,0.00016859,2]
[402019658,1768470637487,-1174.96,0.00016931,2]
[402019659,1768470637498,-2972.17,0.00016931,2]
[402019660,1768470637507,-462.63,0.00016931,2]
[402019661,1768470637516,-9999.99,0.00016931,2]
[402019662,1768470637526,-28280.8,0.00016931,2]
[402019663,1768470637536,-150.99,0.00016931,2]
[402019664,1768470637545,-9999.99,0.00016931,2]
[402019665,1768470637555,-499.99,0.00016931,2]
[402019666,1768470637564,-2359.76833071,0.00016931,2]
[402019667,1768470637576,-6575.56166929,0.00016931,2]
[402019668,1768470637585,-5159.48,0.00016931,2]
[402019669,1768470637595,-9999.99,0.00016931,2]
[402019670,1768470637605,-18620.95,0.00016931,2]
[402019671,1768470637614,-299.99,0.00016931,4]
[402019672,1768470637623,-547.67,0.00016932,2]
[402019673,1768470637632,-250.0,0.00017,2]
[402019674,1768470637642,-2058.61694586,0.00017013,2]
[402019675,1768470637652,-1789.74655374,0.000171,2]
[402019676,1768470637661,-500.0,0.00017142,2]
[402019677,1768470637670,-1069.0,0.00017142,2]
[402019678,1768470637679,-152.07716114,0.00017142,2]
[402019679,1768470637689,-152.76518378,0.00017142,2]
[402019681,1768470637699,-163.16990495,0.00017147,2]
[402019683,1768470637708,-166.66,0.0001715,2]
[402019685,1768470637717,-500.0,0.00017197,2]
[402019687,1768470637726,-1069.0,0.00017197,2]
[402019688,1768470637735,-547.67,0.00017205,2]
[402019689,1768470637745,-500.0,0.00017252,2]
[402019690,1768470637755,-1069.0,0.00017252,2]
[402019691,1768470637764,-582.19,0.00017278,2]
[402019692,1768470637773,-512.72000291,0.00017306,2]
[402019693,1768470637782,-1069.0,0.00017306,2]
[402019694,1768470637791,-381.27418938,0.00017312,2]
[402019695,1768470637800,-169.36274615,0.00017316,2]
[402019696,1768470637809,-163.16990495,0.00017335,2]
[402019697,1768470637818,-1069.0,0.00017361,2]
[402019698,1768470637827,-168.0,0.00017377,2]
[402019699,1768470637836,-500.0,0.00017416,2]
[402019700,1768470637845,-3000.0,0.00017416,2]
[402019701,1768470637854,-1000.0,0.00017416,2]
[402019702,1768470637863,-3000.0,0.00017416,2]
[402019703,1768470637873,-1000.0,0.00017416,2]
[402019704,1768470637882,-3000.0,0.00017416,2]
[402019705,1768470637891,-750.0,0.00017416,2]
[402019706,1768470637901,-322.6107,0.00017416,2]
[402019707,1768470637910,-3117.2381674,0.00017416,2]
[402019708,1768470637919,-2000.0,0.00017416,2]
[402019709,1768470637929,-1239.0,0.00017416,2]
[402019710,1768470637938,-2000.0,0.00017416,2]
[402019711,1768470637947,-2000.0,0.00017416,2]
[402019712,1768470637957,-2000.0,0.00017416,2]
[402019713,1768470637966,-1190.60823039,0.00017416,2]
[402019714,1768470637975,-500.0,0.00017416,2]
[402019715,1768470637984,-721.12765535,0.00017416,2]
[402019716,1768470637994,-500.0,0.00017416,2]
[402019717,1768470638003,-174.61919142,0.00017416,2]
[402019718,1768470638012,-3000.0,0.00017416,2]
[402019719,1768470638022,-3000.0,0.00017416,2]
[402019720,1768470638031,-620.0,0.00017416,2]
[402019721,1768470638041,-578.20924308,0.00017416,2]
[402019722,1768470638050,-3000.0,0.00017416,2]
[402019723,1768470638060,-3000.0,0.00017416,2]
[402019724,1768470638069,-2181.56758697,0.00017416,2]
[402019735,1768470638914,-818.43241303,0.00017416,2]
[402019736,1768470638924,-574.12855637,0.00017416,2]
[402019737,1768470638934,-3000.0,0.00017416,2]
[402019738,1768470638943,-3000.0,0.00017416,2]
[402019739,1768470638953,-2500.0,0.00017416,2]
[402019740,1768470638962,-2356.73611531,0.00017416,2]
[402019741,1768470638971,-2500.0,0.00017416,2]
[402019742,1768470638980,-2500.0,0.00017416,2]
[402019743,1768470638990,-2500.0,0.00017416,2]
[402019744,1768470639000,-2500.0,0.00017416,2]
[402019745,1768470639010,-2500.0,0.00017416,2]
[402019746,1768470639019,-2500.0,0.00017416,2]
[402019747,1768470639029,-2500.0,0.00017416,2]
[402019748,1768470639039,-3000.0,0.00017416,2]
[402019749,1768470639049,-1056.37014812,0.00017416,2]
[402019750,1768470639059,-2500.0,0.00017416,2]
[402019751,1768470639068,-2500.0,0.00017416,2]
[402019752,1768470639077,-2500.0,0.00017416,2]
[402019753,1768470639087,-1000.0,0.00017416,2]
[402019754,1768470639096,-1000.0,0.00017416,2]
[402019755,1768470639106,-1000.0,0.00017416,2]
[402019756,1768470639116,-256.45376075,0.00017416,2]
[402019757,1768470639125,-1069.0,0.00017416,2]
[402019758,1768470639135,-168.0,0.0001742,2]
[402019759,1768470639146,-1069.0,0.00017471,2]
[402019760,1768470639155,-547.67,0.00017479,2]
[402019761,1768470639164,-166.66,0.00017497,2]
[402019762,1768470639175,-500.0,0.0001752,2]
[402019763,1768470639187,-163.16990495,0.00017523,2]
[402019764,1768470639196,-1069.0,0.00017526,2]
[402019765,1768470639206,-168.0,0.00017529,2]
[402019766,1768470639215,-1069.0,0.0001758,2]
[402019767,1768470639226,-228.60783171,0.00017628,2]
[402019768,1768470639235,-1069.0,0.00017635,2]
[402019769,1768470639245,-12416.0,0.00017672,2]
[402019770,1768470639256,-500.0,0.0001769,2]
[402019771,1768470639266,-347.94680943,0.0001769,2]
[402019772,1768470639276,-918.23713514,0.0001769,2]
[402019773,1768470639285,-1619.87914851,0.0001769,2]
[402019774,1768470639295,-2423.24232757,0.0001769,2]
[402019775,1768470639304,-3278.7315,0.0001769,2]
[402019776,1768470639313,-350.23254929,0.0001769,2]
[402019777,1768470639325,-718.76745071,0.0001769,2]
[402019778,1768470639334,-163.16990495,0.00017712,2]
[402019779,1768470639344,-1069.0,0.00017745,2]
[402019780,1768470639353,-547.67,0.00017753,2]
[402019781,1768470639362,-500.23632022,0.00017773,2]
[402019782,1768470639372,-611.15050871,0.00017773,2]
[402019783,1768470639381,-500.3472977,0.00017773,2]
[402019784,1768470639391,-572.43155683,0.00017773,2]
[402019785,1768470639400,-233.81796729,0.00017773,2]
[402019786,1768470639409,-1069.0,0.000178,2]
[402019787,1768470639418,-166.66,0.00017843,2]
[402019788,1768470639427,-1069.0,0.00017854,2]
[402019789,1768470639437,-2547.056282,0.00017857,2]
[402019790,1768470639446,-3497.1429471,0.00017857,2]
[402019791,1768470639456,-1308.3226235,0.00017857,2]
[402019792,1768470639466,-7618.342,0.000179,2]
[402019793,1768470639475,-1000.0,0.000179,2]
[402019794,1768470639484,-2299.478,0.000179,2]
[402019795,1768470639494,-167.608,0.000179,2]
[402019796,1768470639504,-10000.0,0.000179,2]
[402019797,1768470639514,-163.16990495,0.000179,2]
[402019798,1768470639523,-180.9784454,0.000179,2]
[402019799,1768470639533,-1707.82754896,0.000179,2]
[402019800,1768470639542,-186.60017558,0.000179,2]
[402019801,1768470639551,-670.29240342,0.000179,2]
[402019802,1768470639560,-7542.90613441,0.000179,2]
[402019803,1768470639570,-1069.0,0.00017909,2]
[402019804,1768470639579,-595.37131296,0.00017964,2]
[402019805,1768470639588,-1069.0,0.00017964,2]
[402019806,1768470639597,-169.26751175,0.00017973,2]
[402019807,1768470639607,-209.99737993,0.0001799,2]
[402019808,1768470639617,-209.99737993,0.0001799,2]
[402019809,1768470639626,-300.0,0.00017999,2]
[402019810,1768470639636,-300.0,0.00017999,2]
[402019811,1768470639646,-500.0,0.00017999,2]
[402019812,1768470639655,-500.0,0.00017999,2]
[402019813,1768470639664,-500.0,0.00017999,2]
[402019814,1768470639673,-500.0,0.00017999,2]
[402019815,1768470639682,-500.0,0.00017999,2]
[402019816,1768470639691,-500.0,0.00017999,2]
[402019817,1768470639700,-611.68071292,0.00017999,2]
[402019818,1768470639710,-500.0,0.00017999,2]
[402019819,1768470639719,-500.0,0.00017999,2]
[402019820,1768470639728,-500.0,0.00017999,2]
[402019821,1768470639738,-500.0,0.00017999,2]
[402019822,1768470639748,-500.0,0.00017999,2]
[402019823,1768470639757,-500.0,0.00017999,2]
[402019824,1768470639767,-150.0,0.00017999,2]
[402019825,1768470639776,-300.0,0.00017999,2]
[402019826,1768470639786,-300.0,0.00017999,2]
[402019827,1768470639795,-666.0,0.00017999,2]
[402019828,1768470639804,-150.72072503,0.00017999,2]
[402019829,1768470639813,-309.17033272,0.00017999,2]
[402019830,1768470639823,-441.63337288,0.00017999,2]
[402019831,1768470639832,-500.0,0.00017999,2]
[402019832,1768470639842,-500.0,0.00017999,2]
[402019833,1768470639851,-500.0,0.00017999,2]
[402019834,1768470639860,-500.0,0.00017999,2]
[402019835,1768470639870,-500.0,0.00017999,2]
[402019836,1768470639879,-500.0,0.00017999,2]
[402019837,1768470639888,-500.0,0.00017999,2]
[402019838,1768470639897,-500.0,0.00017999,2]
[402019839,1768470639907,-500.0,0.00017999,2]
[402019840,1768470639916,-500.0,0.00017999,2]
[402019841,1768470639925,-500.0,0.00017999,2]
[402019842,1768470639935,-500.0,0.00017999,2]
[402019843,1768470639944,-500.0,0.00017999,2]
[402019844,1768470639953,-500.0,0.00017999,2]
[402019845,1768470639963,-500.0,0.00017999,2]
[402019846,1768470639972,-500.0,0.00017999,2]